Cogmind - Beta 17 @@@ ROGUE MODE // 2026.07.28 @ 20:23:35 Player: OBLIQUE Result: Destroyed by A-27 Freighter via exploding Neutrino Reactor Performance ------------- Evolutions (3) 1500 Regions Visited (6) 1200 Robots Destroyed (67) 335 Value Destroyed (1682) 1682 Prototype IDs (33) 660 Alien Tech Used (0) 0 Bonus (445) 445 TOTAL SCORE: 5822 Bonus ------- Follower Combat Kills 185 Aligned with FarCom 300 Friendly Fire -40 Cogmind --------- Core Integrity 0/700 Matter 98/300 Energy 98/100 System Corruption 7% Temperature Cool (0) Movement Core (50) Location -7/Factory Parts ------- > --- POWER (1) -------- (None) > --- PROPULSION (3) --- (None) > --- UTILITY (5) ------ (None) > --- WEAPON (4) ------- (None) > --- INVENTORY (5) ---- Improved Heat Sink Superbattery (182) Improved Light Armor Plating Peak State ------------ > --- POWER ------------ Heavy Ion Engine > --- PROPULSION ------- Light Treads Light Treads Light Treads > --- UTILITY ---------- Improved Heat Sink Medium Storage Unit Trap Scanner Improved Light Armor Plating Dynamic Insulation System > --- WEAPON ----------- Lightning Gun Gauss Rifle Gauss Rifle Precision Grenade Launcher > --- INVENTORY -------- Light Treads Improved Cooling System Superbattery Improved Light Armor Plating Improved Shield Generator EM Pulse Cannon Gauss Rifle EMP Blaster [Rating: 40] Favorites ----------- Power Ion Engine Engine Ion Engine Propulsion Light Treads Treads Light Treads Wheel Wheel Utility Medium Storage Unit Device Trap Scanner Storage Medium Storage Unit Processor Improved Signal Interpreter Protection Improved Light Armor Plating Weapon Gauss Rifle Energy Gun Improved EM Shotgun Energy Cannon EM Pulse Cannon Ballistic Gun Gauss Rifle Launcher Precision Grenade Launcher Build | -11 -10 -10 -10 -9 -8 -7 ------- Run | Yrd Mat Min Exi Min Mat Fac Slots Evolved 6 | . . . . . 4 2 Power . | . . . . . . . Propulsion 1 | . . . . . . 1 Utility 3 | . . . . . 2 1 Weapon 2 | . . . . . 2 . Parts Attached 50 | 8 3 2 . 2 21 14 Power 5 | 1 . . . 1 3 . Engine 5 | 1 . . . 1 3 . Core . | . . . . . . . Reactor . | . . . . . . . Propulsion 7 | 4 . . . . 1 2 Treads 5 | 2 . . . . 1 2 Leg . | . . . . . . . Wheel 2 | 2 . . . . . . Hover . | . . . . . . . Flight . | . . . . . . . Utility 15 | 1 2 . . . 5 7 Device 6 | . 1 . . . 1 4 Storage 4 | 1 1 . . . 1 1 Processor 1 | . . . . . . 1 Hackware . | . . . . . . . Protection 4 | . . . . . 3 1 Artifact . | . . . . . . . Weapon 23 | 2 1 2 . 1 12 5 Energy Gun 7 | . . . . . 4 3 Energy Cannon 1 | . . . . . . 1 Ballistic Gun 12 | 2 1 2 . 1 6 . Ballistic Cannon . | . . . . . . . Launcher 3 | . . . . . 2 1 Special Weapon . | . . . . . . . Impact Weapon . | . . . . . . . Slashing Weapon . | . . . . . . . Piercing Weapon . | . . . . . . . Special Melee Weapon . | . . . . . . . Unidentified Prototypes 4 | . . . . . 4 . Parts Lost 17 | . . . . . . 17 Power 1 | . . . . . . 1 Propulsion 4 | . . . . . . 4 Utility 3 | . . . . . . 3 Weapon 9 | . . . . . . 9 Highest Loss Streak 16 | . . . . . . 16 To Critical Strikes . | . . . . . . . Average Backups 8 | 3 5 8 9 9 9 8 Power . | . 1 1 1 1 . . Propulsion 1 | 2 2 2 2 2 1 . Utility 2 | . . 1 3 2 3 4 Weapon 3 | . 1 3 3 3 3 3 Tool/Special . | . . . . . . . Unused Backups 9 | 2 . . 1 . 4 2 Power . | . . . . . . . Propulsion 2 | 2 . . . . . . Utility 4 | . . . 1 . 1 2 Weapon 3 | . . . . . 3 . Tool/Special . | . . . . . . . Average Slot Usage (%) 98 | . 97 100 100 100 98 96 Engine 10 | . 14 14 14 14 8 6 Treads 22 | . 28 28 28 28 17 21 Device 13 | . 12 14 14 14 9 18 Storage 10 | . 14 14 14 14 10 7 Protection 8 | . . . . . 14 10 Energy Gun 4 | . . . . . 6 6 Ballistic Gun 22 | . 28 28 28 28 23 14 Launcher 3 | . . . . . 5 6 Peak Build Rating 40 | 6 7 8 9 12 34 40 Average Rating 22 | 4 6 7 8 10 26 37 On Entrance 10 | . 6 7 8 8 12 33 Avg Prop Armor Cover (%) . | . . . . . . . Naked Turns 28 | . . . . . . 28 Heaviest Build 48 | 13 19 19 18 19 47 48 Greatest Support 60 | 40 40 40 40 40 40 60 Greatest Overweight (x) 1 | . . . . . 1 . Average Overweight (x) . | . . . . . . . Largest Inventory Capacity 10 | 8 10 10 10 10 10 10 Average Capacity 9 | 7 8 10 10 10 10 9 Most Carried 10 | 6 6 10 10 10 10 10 Average Carried 8 | 3 5 8 8 9 9 8 Final Capacity 10 | 8 10 10 10 10 10 5 Final Carried 10 | 4 6 9 8 10 10 3 Class Distribution -------------------- 38% | Tank 37% | Mutant 20% | Skirmisher Dominant Class ---------------- Mutant | -10/Materials Mutant | -10/Mines Mutant | -10/Exiles Mutant | -9/Mines Tank | -8/Materials Tank | -7/Factory Resources | -11 -10 -10 -10 -9 -8 -7 ----------- Run | Yrd Mat Min Exi Min Mat Fac Matter Collected 1572 | 300 80 116 . 80 777 219 Remotely 474 | . 80 116 . 80 198 . Salvage Created 2095 | 94 94 84 . 79 873 871 Parts 143 | 2 13 13 . 3 55 57 Haulers Intercepted 2 | . . . . . 2 . Recyclers Shooed 3 | 1 . . . . . 2 Parts Field Recycled . | . . . . . . . Retrieved Matter . | . . . . . . . Parts Self-Destructed . | . . . . . . . Prevented . | . . . . . . . Parts Restored . | . . . . . . . Kills | -11 -10 -10 -10 -9 -8 -7 ------- Run | Yrd Mat Min Exi Min Mat Fac Combat Hostiles Destroyed 42 | . 5 6 . 2 16 13 Guns 31 | . 5 6 . 2 12 6 AOE 11 | . . . . . 4 7 Classes Destroyed 15 | 1 2 1 . 2 5 4 Worker 7 | . . 1 . . 2 4 Builder 2 | . . . . . 1 1 Tunneler 2 | . . . . . 2 . Hauler 2 | . . . . . 2 . Recycler 5 | 1 . . . . 2 2 Operator 1 | . . . . . . 1 Watcher 6 | . 1 . . . 2 3 Swarmer 20 | . 5 6 . . 9 . Grunt 8 | . . . . 1 2 5 Brawler 1 | . . . . 1 . . Protector 1 | . . . . . . 1 Sentry 4 | . . . . . 4 . Specialist 1 | . . . . . . 1 Hunter 4 | . . . . . 1 3 Programmer 3 | . . . . . . 3 Best Kill Streak 14 | 1 5 5 . 2 5 14 Combat Bots Only 6 | . 5 5 . 2 3 6 Max Kills in Single Turn 4 | 1 2 2 . 1 2 4 Gunslinging 1 | . 1 1 . . . . Exploded 2 | . . . . . 2 2 Melee . | . . . . . . . Uniques/NPCs Destroyed . | . . . . . . . Combat | -11 -10 -10 -10 -9 -8 -7 -------- Run | Yrd Mat Min Exi Min Mat Fac Hostile Shots Fired 379 | . 32 36 . 12 47 252 Missed 137 | . 7 13 . 7 16 94 Hits 242 | . 25 23 . 5 31 158 Melee 1 | . . . . 1 . . Projectile 241 | . 25 23 . 4 31 158 AOE 1 | . . . . . . 1 Critical Strikes 9 | . . . . . 1 8 Part Disruptions 1 | . . . . . . 1 Actively Blocked 1 | . . . . . . 1 Damage Taken 3670 | . 224 185 . 66 449 2746 Core 792 | . 34 10 . . 43 705 Absorbed by Shields 194 | . . . . . . 194 Redirected to Shielding 3 | . . . . . 3 . Regen/Repaired (Parts) 483 | . . . . . 356 127 Core Remaining (%) 91 | 100 . . . 82 92 . Volleys Fired 130 | 5 18 13 . 10 52 32 Largest 4 | 2 2 2 . 2 4 4 Hottest 147 | 40 40 40 . 44 139 147 Shots Fired 348 | 10 36 26 . 20 166 90 Gun 321 | 10 36 26 . 20 159 70 Cannon 6 | . . . . . . 6 Launcher 21 | . . . . . 7 14 Special . | . . . . . . . Kinetic 270 | 10 36 26 . 20 128 50 Thermal 10 | . . . . . 10 . Explosive 14 | . . . . . 7 7 Electromagnetic 54 | . . . . . 21 33 Robot Hit Streak 18 | 2 7 6 . 7 18 15 Robot Miss Streak 7 | 2 2 2 . 7 5 3 Penetration Max 1 | . . . . . 1 1 Secondary Targets 4 | . 2 1 . . 1 . Max Gunslinging Chain 1 | . 1 1 . . 1 . Shots Hit Robots 226 | 6 22 13 . 13 104 68 Core Hits 151 | 2 8 8 . 6 51 76 Critical Kills 1 | . . . . . 1 . Critical Parts Destroyed 1 | . . . . . 1 . Critical Strikes 2 | . . . . . 2 . Destroy 2 | . . . . . 2 . Melee Attacks . | . . . . . . . Impact . | . . . . . . . Slashing . | . . . . . . . Piercing . | . . . . . . . Sneak Attacks . | . . . . . . . Combat Hostiles . | . . . . . . . Follow-up Attacks . | . . . . . . . Damage Inflicted 6517 | 57 227 175 . 176 2192 3690 Guns 3510 | 57 221 153 . 164 1687 1228 Cannons 147 | . . . . . . 147 Explosions 2744 | . . . . . 469 2275 Melee . | . . . . . . . Ramming 116 | . 6 22 . 12 36 40 Kinetic 2973 | 57 221 153 . 164 1376 1002 Thermal 968 | . . . . . 105 863 Explosive 1171 | . . . . . 416 755 Electromagnetic 1289 | . . . . . 259 1030 Impact . | . . . . . . . Slashing . | . . . . . . . Piercing . | . . . . . . . Highest Corruption 7 | . . . . . . 7 Average Corruption 3 | . . . . . . 3 Corruption Purged . | . . . . . . . Corruption Blocked . | . . . . . . . Effects 1 | . . . . . . 1 Message Errors 1 | . . . . . . 1 Overload Shots . | . . . . . . . Overflow Damage 124 | . . . . . 3 121 Projectiles . | . . . . . . . Explosions 124 | . . . . . 3 121 Melee . | . . . . . . . Knockbacks . | . . . . . . . Impact . | . . . . . . . Kinetic . | . . . . . . . Secondary . | . . . . . . . Self-Inflicted Damage 252 | . . . . . 36 216 Shots 6 | . . . . . 1 5 Rammed 29 | . 2 9 . 3 8 7 Targets Rammed 33 | . 2 10 . 3 8 10 Kicked . | . . . . . . . Crushed 4 | . . 1 . . . 3 Highest Temperature 145 | . . . . 14 145 78 Average Temperature 46 | . . . . 4 53 28 Received Heat Transfer 576 | . 9 . . 6 72 489 Siege Activations . | . . . . . . . Martial Activations . | . . . . . . . Shielding Activations . | . . . . . . . Robots Disrupted . | . . . . . . . Combat Hostiles . | . . . . . . . Robots Corrupted . | . . . . . . . Combat Hostiles . | . . . . . . . Parts Fried 1 | . . . . . . 1 Impact Corruptions . | . . . . . . . Robots Melted . | . . . . . . . Combat Hostiles . | . . . . . . . Parts Melted . | . . . . . . . Heat Transferred 998 | . . . . . 248 750 Parts Sabotaged . | . . . . . . . Parts Stolen . | . . . . . . . Parts Stripped . | . . . . . . . Power Chain Reactions 5 | . . . . . 1 4 Alert | -11 -10 -10 -10 -9 -8 -7 ------- Run | Yrd Mat Min Exi Min Mat Fac Maximum Alert Level 1 | . . . . . 1 1 Low Security (%) 92 | 100 100 100 . 100 82 96 Level 1 7 | . . . . . 17 3 Level 2 . | . . . . . . . Level 3 . | . . . . . . . Level 4 . | . . . . . . . Level 5 . | . . . . . . . High Security . | . . . . . . . Max Security . | . . . . . . . Peak Influence 279 | 5 125 130 . 74 279 262 Initial 47 | . . 5 . . 5 47 Average 59 | . 47 25 . 22 117 23 Influence Increases 2037 | 5 180 180 . 104 903 665 Destroy 0b10 Robot/C 1040 | . 100 120 . 80 500 240 Destroy 0b10 Robot/NC 135 | 5 5 5 . . 60 60 Destroy Leader 216 | . 22 20 . 10 118 46 Allied During Kill 86 | . . . . 14 66 6 Successful Hack 73 | . 23 5 . . 18 27 Disable Machine 105 | . . . . . 60 45 Anti-Garrison Action 150 | . . . . . . 150 Destroy Structure 127 | . . . . . 51 76 Lose Combat Pursuer 105 | . 30 30 . . 30 15 Influence Decreases 1782 | 5 166 194 . 90 812 515 Entered New Map 76 | . . 9 . . 9 58 Time Decay 1286 | 5 166 185 . 90 573 267 Lost Part 170 | . . . . . . 170 Lost Ally 100 | . . . . . 80 20 Purge Threat 150 | . . . . . 150 . Squads Dispatched 12 | . 2 . . . 2 8 Investigation 3 | . 1 . . . 1 1 Extermination 3 | . . . . . . 3 Reinforcement 2 | . 1 . . . . 1 Assault 2 | . . . . . . 2 Garrison 2 | . . . . . 1 1 Intercept . | . . . . . . . Searches Triggered . | . . . . . . . Construction Impeded 1 | . . . . . . 1 Haulers Reinforced . | . . . . . . . Active Scanning Responses . | . . . . . . . Cargo Convoy Interrupts 1 | . . . . . . 1 Stealth | -11 -10 -10 -10 -9 -8 -7 --------- Run | Yrd Mat Min Exi Min Mat Fac Distress Signals 11 | . 1 . . 1 6 3 Communications Jammed . | . . . . . . . Distress Signals . | . . . . . . . Times Spotted 106 | . 15 8 . 5 39 39 Peak Tracking Total 14 | . 4 3 . 3 5 14 Tactical Retreats 6 | . 2 2 . . 1 1 Traps | -11 -10 -10 -10 -9 -8 -7 ------- Run | Yrd Mat Min Exi Min Mat Fac Traps Triggered . | . . . . . . . Indirectly . | . . . . . . . Trap Hack Attempts . | . . . . . . . Triggered . | . . . . . . . Disarmed . | . . . . . . . Reprogrammed . | . . . . . . . Reused . | . . . . . . . Traps Extracted . | . . . . . . . Installed . | . . . . . . . Triggered . | . . . . . . . Machines | -11 -10 -10 -10 -9 -8 -7 ---------- Run | Yrd Mat Min Exi Min Mat Fac Machines Disabled 8 | . . . . . 4 4 Max in Single Turn 1 | . . . . . 1 1 Garrison Access 1 | . . . . . . 1 Machines Repaired . | . . . . . . . Machines Dismantled . | . . . . . . . Machines Sabotaged . | . . . . . . . Overloaded Fab Kills . | . . . . . . . Hacking | -11 -10 -10 -10 -9 -8 -7 --------- Run | Yrd Mat Min Exi Min Mat Fac Machines Accessed 24 | . 6 1 1 . 10 6 Terminals 18 | . 6 1 . . 7 4 Fabricators . | . . . . . . . Repair Stations 3 | . . . . . 2 1 Recycling Units . | . . . . . . . Scanalyzers . | . . . . . . . Garrison Access 2 | . . . . . 1 1 Total Hacks 84 | . 23 3 1 . 40 17 Successful 47 | . 10 1 1 . 24 11 Failed 36 | . 13 2 . . 15 6 Catastrophic 5 | . . . . . 3 2 Database Lockouts 1 | . . . . . 1 . Manual 43 | . 17 2 1 . 17 6 Terminals 57 | . 23 3 . . 25 6 Fabricators . | . . . . . . . Repair Stations 17 | . . . . . 10 7 Recycling Units . | . . . . . . . Scanalyzers . | . . . . . . . Garrison Access 9 | . . . . . 5 4 Terminal Hacks 18 | . 6 1 1 . 10 . Robot Analysis 3 | . 2 . . . 1 . Prototype ID Bank 4 | . 2 . . . 2 . Terminal Index 2 | . 1 . . . 1 . Alert Level 2 | . . . . . 2 . Unreport Threat 1 | . . . . . 1 . Locate Traps 2 | . 1 . . . 1 . Dispatch Records 1 | . . . . . 1 . Zone Layout 2 | . . 1 . . 1 . Proto ID Catalog 1 | . . . 1 . . . Fabricator Hacks . | . . . . . . . Repair Station Hacks 16 | . . . . . 10 6 Scan Component 8 | . . . . . 5 3 Repair 8 | . . . . . 5 3 Recycling Unit Hacks . | . . . . . . . Scanalyzer . | . . . . . . . Garrison Access Hacks . | . . . . . . . Unauthorized Hacks 13 | . 4 . . . 4 5 Terminals 7 | . 4 . . . 1 2 Assimilate 2 | . 1 . . . . 1 Botnet 5 | . 3 . . . 1 1 Fabricators . | . . . . . . . Repair Stations . | . . . . . . . Recycling Units . | . . . . . . . Scanalyzers . | . . . . . . . Garrison Access 6 | . . . . . 3 3 Reprogram 2 | . . . . . 1 1 Intercept 2 | . . . . . 1 1 Watchers 2 | . . . . . 1 1 Data Cores Recovered 1 | . . . . . 1 . Used . | . . . . . . . Hacking Detections 23 | . 6 1 . . 10 6 Full Trace Events 2 | . 1 . . . 1 . Feedback Events . | . . . . . . . Feedback Blocked . | . . . . . . . Robot Schematics Acquired . | . . . . . . . Robots Built . | . . . . . . . Authchips . | . . . . . . . Time . | . . . . . . . Total Robot Build Rating . | . . . . . . . Part Schematics Acquired . | . . . . . . . Parts Built . | . . . . . . . Authchips . | . . . . . . . Time . | . . . . . . . Total Part Build Rating . | . . . . . . . Part Studies Acquired . | . . . . . . . Parts Repaired 8 | . . . . . 5 3 Time 282 | . . . . . 148 134 Parts Recycled . | . . . . . . . Recycled Matter . | . . . . . . . Retrieved Matter . | . . . . . . . Retrieved Components . | . . . . . . . Parts Scanalyzed . | . . . . . . . Part Schematics Acquired . | . . . . . . . Parts Damaged . | . . . . . . . Bothacking | -11 -10 -10 -10 -9 -8 -7 ------------ Run | Yrd Mat Min Exi Min Mat Fac Used RIF Installer . | . . . . . . . Robots Hacked . | . . . . . . . Non-combat . | . . . . . . . Combat . | . . . . . . . Robot Hacks Applied . | . . . . . . . Relay Couplers Released 2 | . . . . . . 2 Machine Destruction 2 | . . . . . . 2 Fabnet Peak Effective % . | . . . . . . . Robots Rewired . | . . . . . . . Allies Hacked . | . . . . . . . Hacks Repelled . | . . . . . . . Allies | -11 -10 -10 -10 -9 -8 -7 -------- Run | Yrd Mat Min Exi Min Mat Fac Total Allies 7 | . . 3 . . 2 2 Largest Group 4 | . . 3 3 3 4 1 Highest-Rated Group 64 | . . 40 40 40 64 26 Highest-Rated Ally 26 | . . 16 16 16 16 26 Total Orders . | . . . . . . . Ally Attacks 52 | . . . . 5 46 1 Total Damage 447 | . . . . 35 394 18 Kills 12 | . . . . 2 10 . Allies Corrupted . | . . . . . . . Allies Melted . | . . . . . . . Intel | -11 -10 -10 -10 -9 -8 -7 ------- Run | Yrd Mat Min Exi Min Mat Fac Active Infowar (turns) 3150 | . . . . . 1598 1552 Traps 3150 | . . . . . 1598 1552 Robot Analysis Total 3 | . 2 . . . 1 . Derelict Logs Recovered 2 | . . 2 . . . . Drone Launches . | . . . . . . . Drone Recoveries . | . . . . . . . Exploration | -11 -10 -10 -10 -9 -8 -7 ------------- Run | Yrd Mat Min Exi Min Mat Fac Turns Passed 5714 | 115 424 962 337 302 1967 1607 Spaces Moved 2846 | 61 217 559 210 160 774 865 Core 49 | 1 . . . . . 48 Treads 2781 | 44 217 559 210 160 774 817 Legs . | . . . . . . . Wheels 16 | 16 . . . . . . Hover . | . . . . . . . Flight . | . . . . . . . Fastest Speed 50 | 50 160 160 160 160 160 50 Average Speed 168 | 137 160 160 160 160 199 153 Slowest Speed 240 | 160 160 160 160 160 240 160 Overloaded Moves . | . . . . . . . Propulsion Burnouts . | . . . . . . . Robots Hopped . | . . . . . . . Potential Cave-ins . | . . . . . . . Cave-ins Triggered . | . . . . . . . Exploration Rate (%) 44 | 4 43 96 62 41 49 18 Regions Visited 6 Branch Regions 3 Pre-discovered Areas 1 | . . 1 . . . . Known Exits Taken . | . . . . . . . Unknown Exits Taken 6 | 1 1 1 1 1 1 . Scrap Searched 1 | . . 1 . . . . Spaces Dug . | . . . . . . . Terrain Destroyed 144 | . . . . . 58 86 Melee . | . . . . . . . Projectile 4 | . . . . . 3 1 AOE 140 | . . . . . 55 85 Terrain Rammed . | . . . . . . . Walls Destroyed . | . . . . . . . Machines Disabled . | . . . . . . . Actions | -11 -10 -10 -10 -9 -8 -7 --------- Run | Yrd Mat Min Exi Min Mat Fac Total 3492 | 81 259 598 212 185 1088 1069 Wait 350 | . 20 8 . 11 184 127 Move 2841 | 60 216 558 209 160 773 865 Hop . | . . . . . . . Pick Up 33 | 4 . 4 1 . 16 8 Fast Attach 24 | 8 1 . . . 13 2 Attach 16 | . . . . . 5 11 Detach 6 | 2 . . . . 2 2 Swap 23 | . 2 2 . 2 9 8 Drop 37 | 2 . 3 2 . 26 4 Fire 130 | 5 18 13 . 10 52 32 Melee . | . . . . . . . Ram 4 | . . . . . . 4 Kick . | . . . . . . . Crush 28 | . 2 10 . 2 8 6 Escape Stasis . | . . . . . . . Rewire . | . . . . . . . Trap . | . . . . . . . Miscellaneous . | . . . . . . . Route ------- -11/Scrapyard -10/Materials -10/Mines (discovered 3 exits: [*Mat x2] / *Exi) -10/Exiles -9/Mines -8/Materials -7/Factory (discovered 2 exits: *Fac / [*Low]) History --------- Turn | Location | Event 10 | -11/Scrapyard | Discovered new exit (range 15) 116 | -11/Scrapyard | Entered Materials 312 | -10/Materials | Build established: Mutant 483 | -10/Materials | Discovered new exit (range 6) 540 | -10/Materials | Entered Mines 611 | -10/Mines | Learned location of Zion (-6) 614 | -10/Mines | Discovered new exit (range 13) 849 | -10/Mines | Learned Materials emergency access door positions 1047 | -10/Mines | Received a Rocket Launcher from a helpful Derelict 1206 | -10/Mines | Deemed a non-threat by the Exiles lab entrance 1206 | -10/Mines | Discovered new exit (range 5) 1264 | -10/Mines | Discovered new exit (range 8) 1411 | -10/Mines | Assisted by bots powering up and referring to "LRC-V3" 1502 | -10/Mines | Entered Exiles 1502 | -10/Exiles | Accompanied by 3 allies 1541 | -10/Exiles | Met 8R-AWN 1568 | -10/Exiles | Met EX-HEX 1611 | -10/Exiles | Met EX-BIN 1630 | -10/Exiles | Aligned with FarCom system 1632 | -10/Exiles | Given EX-Vault access code 1670 | -10/Exiles | Opened EX-Vault 1682 | -10/Exiles | Found Superbattery 1713 | -10/Exiles | Warned to stay clear of 0b10 Research branches 1758 | -10/Exiles | Met EX-DEC 1824 | -10/Exiles | Discovered new exit (range 10) 1839 | -10/Exiles | Left Exiles lab with Superbattery 1839 | -10/Exiles | Entered Mines 1839 | -9/Mines | Accompanied by 3 allies 1840 | -9/Mines | Assembled infested the area 1845 | -9/Mines | Assisted by a Guerilla fighting off Assembled 1895 | -9/Mines | A weapon hastily lodged in a ceiling crevice suddenly fell to the ground 1980 | -9/Mines | Found a damaged Exp. Sensor Array with a note attached 2087 | -9/Mines | Discovered new exit (range 12) 2141 | -9/Mines | Entered Materials 2141 | -8/Materials | Accompanied by 3 allies 2141 | -8/Materials | Evolved 4 slots: Utility x2, Weapon x2 2554 | -8/Materials | Central database locked down 2582 | -8/Materials | Build established: Skirmisher 2639 | -8/Materials | Garrison activated, responded to threat 2714 | -8/Materials | Repaired Lgt. Treads 2741 | -8/Materials | Repaired Lgt. Treads 2924 | -8/Materials | Discovered new exit (range 3) 3032 | -8/Materials | Build established: Tank 3109 | -8/Materials | Repaired EMP Blaster 3247 | -8/Materials | Repaired Med. Armor Plating 3280 | -8/Materials | Repaired Imp. Ion Engine 4108 | -8/Materials | Entered Factory 4108 | -7/Factory | Evolved 2 slots: Propulsion x1, Utility x1 4210 | -7/Factory | Discovered new exit (range 15) 5026 | -7/Factory | Repaired Prc. Grenade Launcher 5053 | -7/Factory | Repaired Lgt. Treads 5131 | -7/Factory | Build established: Skirmisher 5184 | -7/Factory | Identified exit to Factory 5505 | -7/Factory | Repaired Shock Rifle 5619 | -7/Factory | Cargo convoy interrupted 5627 | -7/Factory | P-60 Hacker assimilated allied Administrator 4a 5635 | -7/Factory | Garrison activated, responded to threat 5683 | -7/Factory | Released all parts (3) 5686 | -7/Factory | Core integrity fell below 50% 5705 | -7/Factory | Discovered new exit (range 13) 5706 | -7/Factory | Core integrity fell below 20% 5715 | -7/Factory | Destroyed by A-27 Freighter via exploding Neutrino Reactor Last Messages --------------- 05697_ Construction Platform disabled. 05698_ K-01 Serf collects debris. 05699_ Slug penetrates A-27 Freighter. 05699_ Pressure Siphon disabled. 05701_ Slug penetrates Wall. 05701_ K-01 Serf cleans the Pressure Siphon. 05702_ Slug penetrates Construction Platform. 05702_ Gauss Rifle destroyed. 05702_ P-60 Hacker resets K-01 Serf, system corruption cleaned. 05703_ Slammed into I-36 Angel. 05705_ EXIT=FOUND 05705_ Penetrated by Slug. 05706_ K-01 Serf collects debris. 05708_ SJO5 QY>BLREM0ZAVXIHY4TM>G,YLL&JQ 05713_ ALERT: Potential suspicious activity detected, Programmers report to Factory Zone 5X. 05715_ Penetrated by Slug. 05715_ Neutrino Reactor explodes. Map ----- +----------------------------------------------------+ | %* !=% ??????????????????????????????? | | ## "##########?????????????????????????????????? | | ##/###########???????#####???????????????????????? | | ! ! #?????? #???????????????????????? | | """" #?????? ????????????????????????? | | "G" """" #????? *!?????????????????????????? | | " " """" #????? !??????????????????????????? | | =% """" ! #????? ???????????????????????????? | | * #?#### !????????????????????????????? | | ##########/##"##"#"###+#?????????????????????????? | | ????????#" ! +?????????????????????????? | | ????????## #?????????????????????????? | | ? ####" #?????????????????????????? | | ? g """" +?????????????????????????? | | ? """ #?????????????????????????? | | ? g """ #?????????????????????????? | | ?"" """" """" """" ###???????????????????????? | | ?"" """" """" p"""" #????##?????????????????? | | ??" """" """" p""" ### ##????????????????? | | ? " "" < ????????????????? | | ??" """" """" ph #???????????????????????? | | ??????"" """% #???????????????????????? | | ???????" """" ###### ###########??????????????? | | ???????? #????# # #??????????????? | | ??????? #????# ihA """ #??????????????? | | ?????? ?????# ;@ """ #??????????????? | | ????? ^ ?????# # """ #??????????????? | | ????]] ^!!! ?????# # #??????????????? | | ?????] !!! ?????# #* ! #??????????????? | | ????? !! ?????# # = |#??????????????? | | ????? ??????# + ! #??????????????? | | ???????""T""" ??????# #;+##+###+#??????????????? | | ????????????##??????#+#### ????????????????????? | | ?????????????????????????# #??????????????????? | | ?????????????????????????# #??????????????????? | | ?????????????????????????# ?????????????????? | | ?????????????????????????# ????????????????? | | ????????????????????????? ???????????????? | | ????????????????????????? ??????????????? | | ????????????????????????? """ #?????????????? | | ????????????????????????? """"" ?????????????? | | ????????????????????????? """"? ????????????? | | ????????????????????????? ????? ???????????? | | ????????????????????????? ????????????????????? | | ????????????????????????? ????????????????????? | | ?????????????????????????+###????????????????????? | | ?????????????????????????????????????????????????? | | ?????????????????????????????????????????????????? | | ?????????????????????????????????????????????????? | | ?????????????????????????????????????????????????? | +----------------------------------------------------+ Best States ------------- Heat Dissipation 61 Energy Generation 14 Energy Capacity 1600 Matter Stores 350 Matter Capacity 350 Sight Range 16 Terrain Scan Density 10 EM Shielding 2 Armor Coverage 375 Core Shielding 20 Evasion (%) 50 Recoil Reduction 3 Item Schematics ----------------- None Robot Schematics ------------------ None Fabricated ------------ Nothing Repaired ---------- Lgt. Treads | 5% | -8/Materials Lgt. Treads | 20% | -8/Materials EMP Blaster | 37% | -8/Materials Med. Armor Plating | 60% | -8/Materials Imp. Ion Engine | 70% | -8/Materials Prc. Grenade Launcher | 65% | -7/Factory Lgt. Treads | 68% | -7/Factory Shock Rifle | 18% | -7/Factory Studied --------- None Alien Tech Used ----------------- None Achievements -------------- None Challenges ------------ None Game ------ Seed TacticalAlloyCyclogen Manual? 0 Play Time 00:49:50 Cumulative 194.3 hours Start 2026.07.28 @ 19:33:13 End 2026.07.28 @ 20:23:35 Sessions 1 Manual Loads 0 Difficulty Rogue Special Mode None Game No. 112 Rogue 112 Adventurer 0 Explorer 0 Win Type - Total 4 Types 4/0/0/0/0/0/0/0/0/0 Lore% 73 Gallery% 63 Achievement% 55 Wizard Run 0 Options --------- Layout 1 ASCII 0 Keyboard 0 Movement Numpad Keybinds 0 Fullscreen 1 Font 24/Smallcaps Map View 50x35 Zoom Use 0% Tactical HUD 1 Map Filters NONE Filters NONE Steam 1 RUN: 42c0a4af-d138-430e-9919-95665e2c5462